fUSD/lending_fUSD_20250211
["ID","MTS","AMOUNT","RATE_DAILY","PERIOD"]
[352693295,1739244644315,-500.0,0.00010958,2]
[352693296,1739244644324,-940.9,0.00010958,2]
[352693297,1739244644333,-165.210226,0.00010958,2]
[352693298,1739244644342,-500.0,0.00010958,2]
[352693299,1739244644351,-500.0,0.00010958,2]
[352693300,1739244644360,-569.18,0.00010958,2]
[352693301,1739244644369,-500.0,0.00010958,2]
[352693302,1739244644378,-500.0,0.00010958,2]
[352693303,1739244644387,-599.06,0.00010958,2]
[352693304,1739244644397,-982.3,0.00010958,2]
[352693305,1739244644406,-803.65,0.00010958,2]
[352693306,1739244644417,-500.0,0.00010958,2]
[352693307,1739244644426,-691.89,0.00010958,2]
[352693308,1739244644435,-500.0,0.00010958,2]
[352693309,1739244644444,-182.9204,0.00010958,2]
[352693310,1739244644454,-535.51,0.00010958,2]
[352693311,1739244644463,-500.0,0.00010958,2]
[352693312,1739244644472,-500.0,0.00010958,2]
[352693313,1739244644481,-897.76,0.00010958,2]
[352693314,1739244644490,-198.819536,0.00010958,2]
[352693315,1739244644499,-963.21,0.00010958,2]
[352693316,1739244644509,-565.94,0.00010958,2]
[352693317,1739244644518,-500.0,0.00010958,2]
[352693318,1739244644528,-500.0,0.00010958,2]
[352693319,1739244644537,-803.32,0.00010958,2]
[352693320,1739244644547,-500.0,0.00010958,2]
[352693321,1739244644556,-500.0,0.00010958,2]
[352693322,1739244644565,-610.82,0.00010958,2]
[352693323,1739244644574,-500.0,0.00010958,2]
[352693324,1739244644584,-513.77,0.00010958,2]
[352693325,1739244644593,-523.43,0.00010958,2]
[352693326,1739244644603,-500.0,0.00010958,2]
[352693327,1739244644612,-500.0,0.00010958,2]
[352693328,1739244644621,-678.02,0.00010958,2]
[352693329,1739244644630,-500.0,0.00010958,2]
[352693330,1739244644639,-999.72,0.00010958,2]
[352693331,1739244644648,-500.0,0.00010958,2]
[352693332,1739244644657,-500.0,0.00010958,2]
[352693333,1739244644668,-500.0,0.00010958,2]
[352693334,1739244644682,-500.0,0.00010958,2]
[352693335,1739244644691,-656.88,0.00010958,2]
[352693336,1739244644700,-500.0,0.00010958,2]
[352693337,1739244644709,-500.0,0.00010958,2]
[352693338,1739244644719,-500.0,0.00010958,2]
[352693339,1739244644727,-198.819524,0.00010958,2]
[352693340,1739244644737,-500.0,0.00010958,2]
[352693341,1739244644746,-976.15,0.00010958,2]
[352693342,1739244644758,-702.98,0.00010958,2]
[352693343,1739244644768,-500.0,0.00010958,2]
[352693344,1739244644777,-850.92,0.00010958,2]
[352693345,1739244644786,-635.04,0.00010958,2]
[352693346,1739244644795,-703.31,0.00010958,2]
[352693347,1739244644804,-500.0,0.00010958,2]
[352693348,1739244644813,-552.63,0.00010958,2]
[352693349,1739244644822,-500.0,0.00010958,2]
[352693350,1739244644831,-500.0,0.00010958,2]
[352693351,1739244644840,-500.0,0.00010958,2]
[352693352,1739244644849,-500.0,0.00010958,2]
[352693353,1739244644858,-544.78,0.00010958,2]
[352693354,1739244644867,-500.0,0.00010958,2]
[352693355,1739244644876,-500.0,0.00010958,2]
[352693356,1739244644885,-182.920401,0.00010958,2]
[352693357,1739244644895,-550.7,0.00010958,2]
[352693358,1739244644904,-852.55,0.00010958,2]
[352693359,1739244644913,-765.1,0.00010958,2]
[352693360,1739244645129,-198.819525,0.00010958,2]
[352693361,1739244645138,-785.89,0.00010958,2]
[352693362,1739244645148,-350.96730563,0.00010958,2]
[352693363,1739244645157,-500.0,0.00010958,2]
[352693364,1739244645167,-846.41,0.00010958,2]
[352693365,1739244645176,-1589.96,0.00010958,2]
[352693366,1739244645186,-500.0,0.00010958,2]
[352693367,1739244645195,-509.14320955,0.00010958,2]
[352693368,1739244645204,-500.0,0.00010958,2]
[352693369,1739244645213,-500.0,0.00010958,2]
[352693370,1739244645223,-753.56,0.00010958,2]
[352693371,1739244645232,-500.0,0.00010958,2]
[352693372,1739244645241,-500.0,0.00010958,2]
[352693373,1739244645251,-1200.61,0.00010958,2]
[352693374,1739244645260,-500.0,0.00010958,2]
[352693375,1739244645270,-1584.48,0.00010958,2]
[352693376,1739244645280,-500.0,0.00010958,2]
[352693377,1739244645289,-182.9204,0.00010958,2]
[352693378,1739244645298,-741.64,0.00010958,2]
[352693379,1739244645307,-750.84,0.00010958,2]
[352693380,1739244645316,-500.0,0.00010958,2]
[352693381,1739244645325,-1149.88,0.00010958,2]
[352693382,1739244645334,-500.0,0.00010958,2]
[352693383,1739244645343,-500.0,0.00010958,2]
[352693384,1739244645353,-1141.89,0.00010958,2]
[352693385,1739244645362,-828.17,0.00010958,2]
[352693386,1739244645371,-1532.72,0.00010958,2]
[352693387,1739244645380,-1847.27,0.00010958,2]
[352693388,1739244645389,-770.39,0.00010958,2]
[352693389,1739244645398,-891.46,0.00010958,2]
[352693390,1739244645407,-500.0,0.00010958,2]
[352693391,1739244645417,-1064.96,0.00010958,2]
[352693392,1739244645426,-656.46,0.00010958,2]
[352693393,1739244645435,-2102.27,0.00010958,2]
[352693394,1739244645444,-984.02,0.00010958,2]
[352693395,1739244645454,-732.33,0.00010958,2]
[352693396,1739244645463,-915.45,0.00010958,2]
[352693397,1739244645472,-641.21,0.00010958,2]
[352693398,1739244645481,-1854.15,0.00010958,2]
[352693399,1739244645491,-881.94,0.00010958,2]
[352693400,1739244645500,-1785.55,0.00010958,2]
[352693401,1739244645510,-709.08,0.00010958,2]
[352693402,1739244645519,-1367.84,0.00010958,2]
[352693403,1739244645528,-2672.86,0.00010958,2]
[352693404,1739244645538,-500.0,0.00010958,2]
[352693405,1739244645547,-500.0,0.00010958,2]
[352693406,1739244645557,-500.0,0.00010958,2]
[352693407,1739244645566,-1370.6,0.00010958,2]
[352693408,1739244645575,-500.0,0.00010958,2]
[352693409,1739244645584,-358.95998745,0.00010958,2]
[352693410,1739244645594,-2181.52,0.00010958,2]
[352693411,1739244645603,-1563.98,0.00010958,2]
[352693412,1739244645613,-896.16,0.00010958,2]
[352693413,1739244645621,-1224.08,0.00010958,2]
[352693414,1739244645630,-1302.3,0.00010958,2]
[352693415,1739244645639,-504.87,0.00010958,2]
[352693416,1739244645648,-1455.13,0.00010958,2]
[352693417,1739244645657,-1109.76,0.00010958,2]
[352693418,1739244645668,-1579.58,0.00010958,2]
[352693419,1739244645681,-1627.58,0.00010958,2]
[352693420,1739244645691,-500.0,0.00010958,2]
[352693421,1739244645699,-2713.63,0.00010958,2]
[352693422,1739244645708,-1006.55,0.00010958,2]
[352693423,1739244645719,-1113.91,0.00010958,2]
[352693424,1739244645728,-819.37,0.00010958,2]
[352693425,1739244645737,-2949.69,0.00010958,2]
[352693426,1739244645747,-1929.18,0.00010958,2]
[352693427,1739244645757,-2242.4,0.00010958,2]
[352693428,1739244645766,-6397.89,0.00010958,2]
[352693429,1739244645776,-2014.03,0.00010958,2]
[352693430,1739244645786,-500.0,0.00010958,2]
[352693431,1739244645795,-1392.32,0.00010958,2]
[352693432,1739244645805,-2927.96,0.00010958,2]
[352693433,1739244645814,-1908.39,0.00010958,2]
[352693434,1739244645824,-1992.52,0.00010958,2]
[352693435,1739244645834,-907.35,0.00010958,2]
[352693436,1739244645843,-2481.87,0.00010958,2]
[352693438,1739244645852,-1797.41,0.00010958,2]
[352693439,1739244645862,-1424.11,0.00010958,2]
[352693440,1739244645872,-783.42,0.00010958,2]
[352693441,1739244645881,-500.0,0.00010958,2]
[352693442,1739244645890,-920.92,0.00010958,2]
[352693443,1739244645899,-1895.91,0.00010958,2]
[352693444,1739244645908,-2448.84,0.00010958,2]
[352693446,1739244645922,-1043.44,0.00010958,2]
[352693448,1739244645932,-1912.5,0.00010958,2]
[352693450,1739244645942,-500.0,0.00010958,2]
[352693452,1739244645952,-2797.35,0.00010958,2]
[352693454,1739244645961,-3113.13,0.00010958,2]
[352693456,1739244645971,-1585.47,0.00010958,2]
[352693458,1739244645981,-750.67,0.00010958,2]
[352693460,1739244645990,-1666.4,0.00010958,2]
[352693462,1739244646000,-1014.85,0.00010958,2]
[352693464,1739244646009,-500.0,0.00010958,2]
[352693466,1739244646018,-4521.01,0.00010958,2]
[352693467,1739244646028,-2093.01,0.00010958,2]
[352693469,1739244646037,-500.0,0.00010958,2]
[352693470,1739244646046,-500.0,0.00010958,2]
[352693472,1739244646055,-2617.93,0.00010958,2]
[352693475,1739244646064,-500.0,0.00010958,2]
[352693477,1739244646073,-500.0,0.00010958,2]
[352693480,1739244646083,-3129.89,0.00010958,2]
[352693482,1739244646092,-500.0,0.00010958,2]
[352693485,1739244646102,-1856.04,0.00010958,2]
[352693487,1739244646112,-1390.18,0.00010958,2]
[352693490,1739244646122,-1871.15,0.00010958,2]
[352693492,1739244646132,-500.0,0.00010958,2]
[352693495,1739244646142,-2175.28,0.00010958,2]
[352693498,1739244646151,-557.96,0.00010958,2]
[352693500,1739244646160,-500.0,0.00010958,2]
[352693503,1739244646174,-500.0,0.00010958,2]
[352693506,1739244646184,-1015.86,0.00010958,2]
[352693508,1739244646193,-569.89,0.00010958,2]
[352693510,1739244646202,-687.43,0.00010958,2]
[352693512,1739244646211,-633.66,0.00010958,2]
[352693513,1739244646220,-3688.94,0.00010958,2]
[352693515,1739244646229,-500.0,0.00010958,2]
[352693517,1739244646238,-2889.0,0.00010958,2]
[352693518,1739244646247,-500.0,0.00010958,2]
[352693519,1739244646256,-506.02,0.00010958,2]
[352693520,1739244646265,-500.0,0.00010958,2]
[352693521,1739244646275,-1075.52,0.00010958,2]
[352693522,1739244646284,-1799.46,0.00010958,2]
[352693523,1739244646293,-500.0,0.00010958,2]
[352693524,1739244646302,-1021.7,0.00010958,2]
[352693525,1739244646312,-228.67440538,0.00010958,2]
[352693526,1739244646321,-1402.99,0.00010958,2]
[352693527,1739244646330,-2769.23,0.00010958,2]
[352693528,1739244646339,-2077.27,0.00010958,2]
[352693529,1739244646348,-879.27,0.00010958,2]
[352693530,1739244646357,-497.77,0.00010958,2]
[352693531,1739244646366,-500.78,0.00010958,2]
[352693532,1739244646376,-150.0,0.00010959,2]
[352693533,1739244646385,-150.0,0.00011,2]
[352693534,1739244646395,-37142.8567283,0.00011,2]
[352693535,1739244646404,-159.01,0.00011,2]
[352693536,1739244646414,-429.88,0.00011065,2]
[352693537,1739244646423,-500.0,0.00011094,2]
[352693538,1739244646432,-500.0,0.00011094,2]
[352693539,1739244646442,-500.0,0.00011094,2]
[352693540,1739244646451,-500.0,0.00011094,2]
[352693541,1739244646460,-500.0,0.00011094,2]
[352693542,1739244646469,-500.0,0.00011094,2]
[352693543,1739244646478,-500.0,0.00011094,2]
[352693544,1739244646487,-500.0,0.00011094,2]
[352693545,1739244646497,-500.0,0.00011094,2]
[352693546,1739244646506,-191.59072333,0.00011094,2]
[352693547,1739244646515,-500.0,0.00011094,2]
[352693548,1739244646524,-500.0,0.00011094,2]
[352693549,1739244646533,-578.40310998,0.00011094,2]
[352693550,1739244646543,-500.0,0.00011094,2]
[352693551,1739244646552,-458.49937099,0.00011094,2]
[352693552,1739244646562,-500.0,0.00011094,2]
[352693553,1739244646571,-613.54695566,0.00011094,2]
[352693554,1739244646580,-500.0,0.00011094,2]
[352693555,1739244646590,-500.0,0.00011094,2]
[352693556,1739244646599,-500.0,0.00011094,2]
[352693557,1739244646608,-500.0,0.00011094,2]
[352693558,1739244646618,-500.0,0.00011094,2]
[352693560,1739244646627,-166.84490125,0.00011094,2]
[352693561,1739244646636,-500.0,0.00011094,2]
[352693562,1739244646645,-500.0,0.00011094,2]
[352693563,1739244646654,-501.41301744,0.00011094,2]
[352693565,1739244646665,-577.54043585,0.00011094,2]
[352693566,1739244646676,-380.04841806,0.00011094,2]
[352693567,1739244646687,-555.1,0.00011094,2]
[352693568,1739244646696,-500.0,0.00011094,2]
[352693569,1739244646706,-500.0,0.00011094,2]
[352693570,1739244646716,-500.0,0.00011094,2]
[352693571,1739244646727,-500.0,0.00011094,2]
[352693572,1739244646737,-500.0,0.00011094,2]
[352693573,1739244646748,-500.0,0.00011094,2]
[352693574,1739244646759,-500.0,0.00011094,2]
[352693575,1739244646768,-500.0,0.00011094,2]
[352693576,1739244646778,-500.0,0.00011094,2]
[352693577,1739244646788,-500.0,0.00011094,2]
[352693578,1739244646798,-500.0,0.00011094,2]
[352693579,1739244646809,-500.0,0.00011094,2]
[352693580,1739244646818,-500.0,0.00011094,2]
[352693581,1739244646828,-500.0,0.00011094,2]
[352693582,1739244646838,-500.0,0.00011094,2]
[352693583,1739244646847,-500.0,0.00011094,2]
[352693584,1739244646857,-568.59,0.00011094,2]
[352693585,1739244646867,-500.0,0.00011094,2]
[352693586,1739244646876,-500.0,0.00011094,2]
[352693587,1739244646887,-416.58550639,0.00011094,2]
[352693588,1739244646896,-511.10875086,0.00011094,2]
[352693589,1739244646905,-500.0,0.00011094,2]
[352693590,1739244646917,-500.0,0.00011094,2]
[352693591,1739244646926,-500.0,0.00011094,2]
[352693592,1739244646935,-500.0,0.00011094,2]
[352693593,1739244646945,-500.0,0.00011094,2]
[352693594,1739244646954,-500.0,0.00011094,2]
[352693595,1739244646964,-500.0,0.00011094,2]
[352693596,1739244646973,-585.11,0.00011094,2]
[352693597,1739244646983,-500.0,0.00011094,2]
[352693598,1739244646993,-500.0,0.00011094,2]
[352693599,1739244647002,-500.0,0.00011094,2]
[352693600,1739244647011,-500.0,0.00011094,2]
[352693601,1739244647021,-500.0,0.00011094,2]
[352693602,1739244647030,-500.0,0.00011094,2]
[352693603,1739244647040,-500.0,0.00011094,2]
[352693604,1739244647049,-500.0,0.00011094,2]
[352693605,1739244647058,-501.30953509,0.00011094,2]
[352693606,1739244647067,-500.0,0.00011094,2]
[352693607,1739244647076,-500.0,0.00011094,2]
[352693608,1739244647086,-509.98465882,0.00011094,2]
[352693609,1739244647095,-500.0,0.00011094,2]
[352693610,1739244647105,-500.0,0.00011094,2]
[352693611,1739244647114,-500.0,0.00011094,2]
[352693612,1739244647124,-578.11,0.00011094,2]
[352693613,1739244647133,-500.0,0.00011094,2]
[352693614,1739244647143,-500.0,0.00011094,2]
[352693615,1739244647151,-500.0,0.00011094,2]
[352693616,1739244647161,-500.0,0.00011094,2]
[352693617,1739244647172,-500.0,0.00011094,2]
[352693618,1739244647182,-500.0,0.00011094,2]
[352693619,1739244647192,-500.0,0.00011094,2]
[352693620,1739244647201,-500.0,0.00011094,2]
[352693621,1739244647211,-505.19088532,0.00011094,2]
[352693622,1739244647221,-999.72,0.00011094,2]
[352693623,1739244647232,-500.0,0.00011094,2]
[352693624,1739244647242,-500.0,0.00011094,2]
[352693625,1739244647251,-504.071431,0.00011094,2]
[352693626,1739244647261,-500.0,0.00011094,2]
[352693627,1739244647271,-500.0,0.00011094,2]
[352693628,1739244647282,-500.0,0.00011094,2]
[352693629,1739244647292,-500.0,0.00011094,2]
[352693630,1739244647301,-238.65848736,0.00011094,2]
[352693631,1739244647310,-500.0,0.00011094,2]
[352693632,1739244647320,-500.0,0.00011094,2]
[352693633,1739244647330,-500.0,0.00011094,2]
[352693634,1739244647339,-500.0,0.00011094,2]
[352693635,1739244647348,-501.86175699,0.00011094,2]
[352693636,1739244647358,-500.0,0.00011094,2]
[352693637,1739244647367,-500.0,0.00011094,2]
[352693638,1739244647376,-500.0,0.00011094,2]
[352693639,1739244647386,-500.0,0.00011094,2]
[352693640,1739244647396,-508.35965847,0.00011094,2]
[352693641,1739244647406,-500.0,0.00011094,2]
[352693642,1739244647416,-504.22017422,0.00011094,2]
[352693643,1739244647426,-513.74411179,0.00011094,2]
[352693644,1739244647435,-500.0,0.00011094,2]
[352693645,1739244647444,-500.0,0.00011094,2]
[352693646,1739244647453,-500.0,0.00011094,2]
[352693647,1739244647462,-500.0,0.00011094,2]
[352693648,1739244647472,-500.0,0.00011094,2]
[352693649,1739244647481,-526.16,0.00011094,2]
[352693650,1739244647490,-500.0,0.00011094,2]
[352693651,1739244647499,-500.0,0.00011094,2]
[352693652,1739244647507,-500.0,0.00011094,2]
[352693653,1739244647516,-510.6615488,0.00011094,2]
[352693654,1739244647525,-500.0,0.00011094,2]
[352693655,1739244647534,-500.0,0.00011094,2]
[352693656,1739244647543,-500.0,0.00011094,2]
[352693657,1739244647552,-500.0,0.00011094,2]
[352693658,1739244647561,-502.18279018,0.00011094,2]
[352693659,1739244647570,-1172.85,0.00011094,2]
[352693660,1739244647579,-500.0,0.00011094,2]
[352693661,1739244647588,-500.0,0.00011094,2]
[352693662,1739244647597,-937.18,0.00011094,2]
[352693663,1739244647607,-1094.47,0.00011094,2]
[352693664,1739244647616,-500.0,0.00011094,2]
[352693665,1739244647625,-500.0,0.00011094,2]
[352693666,1739244647634,-500.0,0.00011094,2]
[352693667,1739244647643,-3206.64,0.00011094,2]
[352693668,1739244647653,-500.0,0.00011094,2]
[352693669,1739244647662,-998.4,0.00011094,2]
[352693670,1739244647674,-611.79,0.00011094,2]
[352693671,1739244647684,-1340.86,0.00011094,2]
[352693672,1739244647694,-500.0,0.00011094,2]
[352693673,1739244647704,-691.25,0.00011094,2]
[352693674,1739244647713,-500.0,0.00011094,2]
[352693675,1739244647724,-500.0,0.00011094,2]
[352693676,1739244647734,-1898.54,0.00011094,2]
[352693677,1739244647744,-500.0,0.00011094,2]
[352693678,1739244647758,-1483.68,0.00011094,2]
[352693679,1739244647768,-500.0,0.00011094,2]
[352693680,1739244647777,-1831.6,0.00011094,2]
[352693681,1739244647787,-500.0,0.00011094,2]
[352693682,1739244647797,-1017.66,0.00011094,2]
[352693683,1739244647807,-1275.49,0.00011094,2]
[352693684,1739244647817,-3086.28,0.00011094,2]
[352693685,1739244647827,-199.81381688,0.00011094,2]
[352693686,1739244647836,-500.0,0.00011094,2]
[352693687,1739244647845,-4381.0,0.00011094,2]
[352693688,1739244647855,-500.0,0.00011094,2]
[352693689,1739244647863,-500.0,0.00011094,2]
[352693690,1739244647873,-1336.57,0.00011094,2]
[352693691,1739244647882,-633.25,0.00011094,2]
[352693692,1739244647891,-500.0,0.00011094,2]
[352693693,1739244647900,-977.98,0.00011094,2]
[352693694,1739244647910,-500.0,0.00011094,2]
[352693695,1739244647920,-500.0,0.00011094,2]
[352693696,1739244647930,-500.0,0.00011094,2]
[352693697,1739244647940,-500.0,0.00011094,2]
[352693698,1739244647949,-500.0,0.00011094,2]
[352693699,1739244647959,-1094.69,0.00011094,2]
[352693700,1739244647969,-428.39773882,0.00011094,2]
[352693701,1739244647978,-167.07930069,0.00011094,2]
[352693702,1739244647988,-2522.91,0.00011094,2]
[352693703,1739244647998,-500.0,0.00011094,2]
[352693704,1739244648008,-500.0,0.00011094,2]
[352693705,1739244648019,-504.88,0.00011094,2]
[352693706,1739244648030,-500.0,0.00011094,2]
[352693707,1739244648041,-500.0,0.00011094,2]
[352693708,1739244648051,-300.0,0.00011094,2]
[352693709,1739244648061,-300.0,0.00011094,2]
[352693710,1739244648071,-502.89612895,0.00011095,2]
[352693711,1739244648082,-500.0,0.00011095,2]
[352693712,1739244648092,-500.0,0.00011095,2]
[352693713,1739244648103,-500.0,0.00011095,2]
[352693714,1739244648113,-500.0,0.00011095,2]
[352693715,1739244648123,-500.0,0.00011095,2]
[352693716,1739244648134,-500.0,0.00011095,2]
[352693717,1739244648144,-500.0,0.00011095,2]
[352693718,1739244648155,-500.0,0.00011095,2]
[352693719,1739244648167,-500.0,0.00011095,2]
[352693720,1739244648177,-500.0,0.00011095,2]
[352693721,1739244648188,-500.0,0.00011095,2]
[352693722,1739244648199,-500.0,0.00011095,2]
[352693723,1739244648211,-500.0,0.00011095,2]
[352693724,1739244648221,-500.0,0.00011095,2]
[352693725,1739244648231,-500.0,0.00011095,2]
[352693726,1739244648242,-500.0,0.00011095,2]
[352693727,1739244648252,-500.0,0.00011095,2]
[352693728,1739244648263,-630.15,0.00011095,2]
[352693729,1739244648273,-500.0,0.00011095,2]
[352693730,1739244648283,-500.0,0.00011095,2]
[352693731,1739244648294,-500.0,0.00011095,2]
[352693732,1739244648304,-518.85,0.00011095,2]
[352693733,1739244648316,-500.0,0.00011095,2]
[352693734,1739244648326,-767.4,0.00011095,2]
[352693735,1739244648337,-675.01,0.00011095,2]
[352693736,1739244648347,-500.0,0.00011095,2]
[352693737,1739244648357,-559.09,0.00011095,2]
[352693738,1739244648367,-1082.05,0.00011095,2]
[352693739,1739244648378,-629.64,0.00011095,2]
[352693740,1739244648388,-525.34,0.00011095,2]
[352693741,1739244648399,-500.0,0.00011095,2]
[352693742,1739244648408,-582.38,0.00011095,2]
[352693743,1739244648421,-1012.06,0.00011095,2]
[352693744,1739244648431,-500.0,0.00011095,2]
[352693745,1739244648442,-1382.07,0.00011095,2]
[352693746,1739244648454,-833.78,0.00011095,2]
[352693747,1739244648464,-712.4,0.00011095,2]
[352693748,1739244648475,-500.0,0.00011095,2]
[352693749,1739244648485,-548.51,0.00011095,2]
[352693750,1739244648496,-500.0,0.00011095,2]
[352693751,1739244648506,-500.0,0.00011095,2]
[352693752,1739244648516,-728.21,0.00011095,2]
[352693753,1739244648526,-696.02,0.00011095,2]
[352693754,1739244648536,-500.0,0.00011095,2]
[352693755,1739244648546,-586.34,0.00011095,2]
[352693756,1739244648556,-782.46,0.00011095,2]
[352693757,1739244648566,-500.0,0.00011095,2]
[352693758,1739244648575,-500.0,0.00011095,2]
[352693759,1739244648585,-500.0,0.00011095,2]
[352693760,1739244648595,-500.0,0.00011095,2]
[352693761,1739244648606,-289.16,0.00011095,2]
[352693762,1739244648616,-776.51,0.00011095,2]
[352693763,1739244648626,-500.0,0.00011095,2]
[352693764,1739244648636,-728.88,0.00011095,2]
[352693765,1739244648646,-500.0,0.00011095,2]
[352693766,1739244648656,-500.0,0.00011095,2]
[352693767,1739244648667,-774.22,0.00011095,2]
[352693768,1739244648679,-500.0,0.00011095,2]
[352693769,1739244648690,-500.0,0.00011095,2]
[352693770,1739244648700,-604.36,0.00011095,2]
[352693771,1739244648710,-500.0,0.00011095,2]
[352693772,1739244648720,-500.0,0.00011095,2]
[352693773,1739244648730,-388.66462566,0.00011095,2]
[352693774,1739244648741,-689.1,0.00011095,2]
[352693775,1739244648751,-500.0,0.00011095,2]
[352693776,1739244648763,-500.0,0.00011095,2]
[352693777,1739244648774,-500.0,0.00011095,2]
[352693778,1739244648783,-500.0,0.00011095,2]
[352693779,1739244648793,-688.83,0.00011095,2]
[352693780,1739244648803,-500.0,0.00011095,2]
[352693781,1739244648818,-871.829796,0.00011095,2]
[352693782,1739244648828,-500.0,0.00011095,2]
[352693783,1739244648838,-500.0,0.00011095,2]
[352693784,1739244648847,-951.022489,0.00011095,2]
[352693785,1739244648856,-799.64,0.00011095,2]
[352693786,1739244648867,-500.0,0.00011095,2]
[352693787,1739244648876,-940.9,0.00011095,2]
[352693788,1739244648886,-500.0,0.00011095,2]
[352693789,1739244648895,-500.0,0.00011095,2]
[352693790,1739244648905,-500.0,0.00011095,2]
[352693791,1739244648915,-569.18,0.00011095,2]
[352693792,1739244648925,-500.0,0.00011095,2]
[352693793,1739244648935,-500.0,0.00011095,2]
[352693794,1739244648946,-599.06,0.00011095,2]
[352693795,1739244648956,-982.3,0.00011095,2]
[352693796,1739244648966,-803.65,0.00011095,2]
[352693797,1739244648976,-500.0,0.00011095,2]
[352693798,1739244648986,-691.89,0.00011095,2]
[352693799,1739244648997,-500.0,0.00011095,2]
[352693800,1739244649007,-535.51,0.00011095,2]
[352693801,1739244649017,-500.0,0.00011095,2]
[352693802,1739244649027,-505.10374659,0.00011095,2]
[352693803,1739244649037,-897.76,0.00011095,2]
[352693804,1739244649047,-963.21,0.00011095,2]
[352693805,1739244649057,-565.94,0.00011095,2]
[352693806,1739244649067,-500.0,0.00011095,2]
[352693807,1739244649078,-500.0,0.00011095,2]
[352693808,1739244649088,-803.32,0.00011095,2]
[352693809,1739244649098,-500.0,0.00011095,2]
[352693810,1739244649107,-500.0,0.00011095,2]
[352693811,1739244649118,-610.82,0.00011095,2]
[352693812,1739244649128,-500.0,0.00011095,2]
[352693813,1739244649139,-513.77,0.00011095,2]
[352693814,1739244649149,-523.43,0.00011095,2]
[352693815,1739244649159,-500.0,0.00011095,2]
[352693816,1739244649170,-500.0,0.00011095,2]
[352693817,1739244649362,-500.0,0.00011095,2]
[352693818,1739244649372,-678.02,0.00011095,2]
[352693819,1739244649381,-500.0,0.00011095,2]
[352693820,1739244649391,-500.0,0.00011095,2]
[352693821,1739244649400,-500.0,0.00011095,2]
[352693822,1739244649409,-500.0,0.00011095,2]
[352693823,1739244649419,-656.88,0.00011095,2]
[352693824,1739244649429,-500.0,0.00011095,2]
[352693825,1739244649438,-500.0,0.00011095,2]
[352693826,1739244649448,-500.0,0.00011095,2]
[352693827,1739244649457,-500.0,0.00011095,2]
[352693828,1739244649467,-976.15,0.00011095,2]
[352693829,1739244649476,-702.98,0.00011095,2]
[352693830,1739244649486,-500.0,0.00011095,2]
[352693831,1739244649495,-850.92,0.00011095,2]
[352693832,1739244649505,-635.04,0.00011095,2]
[352693833,1739244649515,-703.31,0.00011095,2]
[352693834,1739244649524,-500.0,0.00011095,2]
[352693835,1739244649534,-552.63,0.00011095,2]
[352693836,1739244649543,-500.0,0.00011095,2]